Cogmind - Beta 13 @@@ ROGUE MODE // 2024.03.02 @ 10:35:01 Player: Kaz Result: Destroyed by as-59726 with Assembled Rifle Performance ------------- Evolutions (0) 0 Regions Visited (2) 400 Robots Destroyed (25) 125 Value Destroyed (516) 516 Prototype IDs (2) 40 Alien Tech Used (0) 0 Bonus (0) 0 TOTAL SCORE: 1081 Bonus ------- None Cogmind --------- Core Integrity 0/250 Matter 285/300 Energy 250/250 System Corruption 8% Temperature Cool (0) Movement Rolling (110) Ox2 Location -10/Mines Parts ------- > --- POWER (1) -------- Ion Engine > --- PROPULSION (2) --- Wheel Wheel > --- UTILITY (2) ------ High-capacity Storage Unit Core Shielding > --- WEAPON (2) ------- Light Assault Rifle Light Assault Rifle > --- INVENTORY (20) --- Aluminum Leg Aluminum Leg Wheel Wheel Wheel Wheel High-capacity Battery (250) Core Shielding Core Shielding Utility Shielding Light Armor Plating Light Armor Plating Light Armor Plating Improved Light Armor Plating Light Assault Rifle Light Assault Rifle Light Assault Rifle Light Assault Rifle Light Assault Rifle Mining Claw Peak State ------------ > --- POWER ------------ Light Ion Engine > --- PROPULSION ------- Wheel Compact Wheel > --- UTILITY ---------- High-capacity Storage Unit Core Shielding > --- WEAPON ----------- Light Assault Rifle Light Assault Rifle > --- INVENTORY -------- Ion Engine Aluminum Leg Aluminum Leg Wheel Wheel Wheel High-capacity Battery Core Shielding Core Shielding Utility Shielding Light Armor Plating Light Armor Plating Improved Light Armor Plating Light Assault Rifle Light Assault Rifle Light Assault Rifle Light Assault Rifle Mining Claw [Rating: 9] Favorites ----------- Power Ion Engine Engine Ion Engine Propulsion Wheel Leg Aluminum Leg Wheel Wheel Utility High-capacity Storage Unit Storage High-capacity Storage Unit Protection Core Shielding Weapon Light Assault Rifle Energy Gun Small Laser Ballistic Gun Light Assault Rifle Build | -11 -10 -10 ------- Run | Yrd Mat Min Slots Evolved . | . . . Power . | . . . Propulsion . | . . . Utility . | . . . Weapon . | . . . Parts Attached 27 | 6 11 10 Power 5 | 1 2 2 Engine 5 | 1 2 2 Core . | . . . Reactor . | . . . Propulsion 10 | 2 4 4 Treads . | . . . Leg 1 | . 1 . Wheel 9 | 2 3 4 Hover . | . . . Flight . | . . . Utility 3 | 1 2 . Device . | . . . Storage 2 | 1 1 . Processor . | . . . Hackware . | . . . Protection 1 | . 1 . Artifact . | . . . Weapon 9 | 2 3 4 Energy Gun 1 | . 1 . Energy Cannon . | . . . Ballistic Gun 8 | 2 2 4 Ballistic Cannon . | . . . Launcher . | . . . Special Weapon . | . . . Impact Weapon . | . . . Slashing Weapon . | . . . Piercing Weapon . | . . . Special Melee Weapon . | . . . Unidentified Prototypes . | . . . Parts Lost 10 | . 5 5 Power 2 | . 1 1 Propulsion 5 | . 3 2 Utility . | . . . Weapon 3 | . 1 2 Highest Loss Streak 3 | . 2 3 To Critical Strikes 1 | . . 1 Average Slot Usage (%) 91 | . 90 93 Engine 13 | . 13 13 Leg 1 | . 2 . Wheel 19 | . 17 22 Storage 19 | . 22 14 Protection 7 | . 4 14 Energy Gun 4 | . 5 . Ballistic Gun 23 | . 22 28 Naked Turns . | . . . Heaviest Build 53 | 13 53 48 Greatest Support 32 | 26 26 32 Greatest Overweight (x) 17 | 2 17 4 Average Overweight (x) 2 | . 2 2 Largest Inventory Capacity 20 | 8 20 20 Average Capacity 19 | 6 19 20 Most Carried 20 | . 16 20 Average Carried 10 | . 8 16 Final Capacity 20 | 8 20 20 Final Carried 20 | . 16 20 Class Distribution -------------------- 75% | Mutant 24% | Scavenger-Mutant Dominant Class ---------------- Mutant | -10/Materials Mutant | -10/Mines Resources | -11 -10 -10 ----------- Run | Yrd Mat Min Matter Collected 681 | 155 379 147 Remotely . | . . . Salvage Created 704 | . 619 85 Parts 54 | . 43 11 Haulers Intercepted 1 | . 1 . Recyclers Shooed 1 | . . 1 Parts Field Recycled . | . . . Retrieved Matter . | . . . Parts Self-Destructed . | . . . Prevented . | . . . Kills | -11 -10 -10 ------- Run | Yrd Mat Min Combat Hostiles Destroyed 25 | . 17 8 Guns 25 | . 17 8 Classes Destroyed 6 | . 5 1 Worker 1 | . 1 . Hauler 1 | . 1 . Watcher 1 | . 1 . Swarmer 11 | . 6 5 Grunt 11 | . 11 . Assembled 3 | . . 3 Best Kill Streak 4 | . 4 3 Combat Bots Only 3 | . 3 3 Max Kills in Single Turn 2 | . 2 1 Gunslinging . | . . . Exploded . | . . . Melee . | . . . Uniques/NPCs Destroyed . | . . . Combat | -11 -10 -10 -------- Run | Yrd Mat Min Hostile Shots Fired 148 | . 91 57 Missed 33 | . 24 9 Damage Taken 1239 | . 745 494 Core 255 | . 138 117 Absorbed by Shields . | . . . Redirected to Shielding 33 | . 12 21 Core Remaining (%) 100 | 100 . . Volleys Fired 102 | . 68 34 Largest 2 | . 2 2 Hottest 60 | . 60 40 Shots Fired 193 | . 127 66 Gun 193 | . 127 66 Cannon . | . . . Launcher . | . . . Special . | . . . Kinetic 168 | . 102 66 Thermal 25 | . 25 . Explosive . | . . . Electromagnetic . | . . . Robot Hit Streak 13 | . 13 4 Robot Miss Streak 5 | . 5 4 Penetration Max . | . . . Secondary Targets 4 | . 3 1 Max Gunslinging Chain 1 | . 1 1 Shots Hit Robots 120 | . 86 34 Core Hits 53 | . 38 15 Critical Kills 1 | . 1 . Critical Parts Destroyed . | . . . Critical Strikes 1 | . 1 . Destroy 1 | . 1 . Melee Attacks . | . . . Impact . | . . . Slashing . | . . . Piercing . | . . . Sneak Attacks . | . . . Combat Hostiles . | . . . Follow-up Attacks . | . . . Damage Inflicted 1263 | . 961 302 Guns 1235 | . 942 293 Cannons . | . . . Explosions . | . . . Melee . | . . . Ramming 28 | . 19 9 Kinetic 1043 | . 750 293 Thermal 192 | . 192 . Explosive . | . . . Electromagnetic . | . . . Impact . | . . . Slashing . | . . . Piercing . | . . . Highest Corruption 8 | . . 8 Average Corruption 7 | . . 7 Corruption Purged . | . . . Corruption Blocked . | . . . Effects 10 | . . 10 Message Errors 4 | . . 4 Matter Fused 2 | . . 2 Heat Flow Errors 2 | . . 2 Data Loss (major) 2 | . . 2 Overload Shots . | . . . Overflow Damage . | . . . Projectiles . | . . . Explosions . | . . . Melee . | . . . Knockbacks . | . . . Impact . | . . . Kinetic . | . . . Secondary . | . . . Self-Inflicted Damage 12 | . 8 4 Shots . | . . . Rammed 4 | . 3 1 Targets Rammed 4 | . 3 1 Kicked . | . . . Crushed . | . . . Highest Temperature 155 | . 30 155 Average Temperature 23 | . 10 75 Received Heat Transfer 345 | . 345 . Siege Activations . | . . . Robots Corrupted . | . . . Combat Hostiles . | . . . Parts Fried . | . . . Impact Corruptions . | . . . Robots Melted . | . . . Combat Hostiles . | . . . Parts Melted . | . . . Heat Transferred 425 | . 425 . Parts Sabotaged . | . . . Parts Stolen . | . . . Parts Stripped . | . . . Power Chain Reactions . | . . . Alert | -11 -10 -10 ------- Run | Yrd Mat Min Peak Influence 237 | . 237 128 Initial 13 | . . 13 Average 70 | . 72 70 Maximum Alert Level 1 | . 1 . Low Security (%) 98 | 100 97 100 Level 1 1 | . 2 . Level 2 . | . . . Level 3 . | . . . Level 4 . | . . . Level 5 . | . . . High Security . | . . . Max Security . | . . . Squads Dispatched 4 | . 4 . Investigation 1 | . 1 . Extermination . | . . . Reinforcement 3 | . 3 . Assault . | . . . Garrison . | . . . Intercept . | . . . Searches Triggered . | . . . Construction Impeded . | . . . Haulers Reinforced . | . . . Active Scanning Responses . | . . . Cargo Convoy Interrupts . | . . . Stealth | -11 -10 -10 --------- Run | Yrd Mat Min Distress Signals . | . . . Communications Jammed . | . . . Distress Signals . | . . . Times Spotted 37 | . 26 11 Peak Tracking Total 4 | . 4 3 Tactical Retreats 1 | . . 1 Traps | -11 -10 -10 ------- Run | Yrd Mat Min Traps Triggered 1 | . 1 . Indirectly . | . . . Trap Hack Attempts . | . . . Triggered . | . . . Disarmed 4 | . 4 . Reprogrammed . | . . . Reused . | . . . Traps Extracted . | . . . Installed . | . . . Triggered . | . . . Machines | -11 -10 -10 ---------- Run | Yrd Mat Min Machines Disabled . | . . . Max in Single Turn . | . . . Machines Repaired . | . . . Machines Dismantled . | . . . Machines Sabotaged . | . . . Overloaded Fab Kills . | . . . Hacking | -11 -10 -10 --------- Run | Yrd Mat Min Machines Accessed 4 | . 4 . Terminals 4 | . 4 . Fabricators . | . . . Repair Stations . | . . . Recycling Units . | . . . Scanalyzers . | . . . Garrison Access . | . . . Total Hacks 14 | . 14 . Successful 9 | . 9 . Failed 5 | . 5 . Catastrophic 2 | . 2 . Database Lockouts . | . . . Manual . | . . . Terminals 14 | . 14 . Fabricators . | . . . Repair Stations . | . . . Recycling Units . | . . . Scanalyzers . | . . . Garrison Access . | . . . Terminal Hacks 9 | . 9 . Record 2 | . 2 . Prototype ID Bank 1 | . 1 . Emergency Access Points 1 | . 1 . Alert Level 2 | . 2 . Locate Traps 1 | . 1 . Disarm Traps 1 | . 1 . Zone Layout 1 | . 1 . Fabricator Hacks . | . . . Repair Station Hacks . | . . . Recycling Unit Hacks . | . . . Scanalyzer . | . . . Garrison Access Hacks . | . . . Unauthorized Hacks . | . . . Terminals . | . . . Fabricators . | . . . Repair Stations . | . . . Recycling Units . | . . . Scanalyzers . | . . . Garrison Access . | . . . Data Cores Recovered . | . . . Used . | . . . Hacking Detections 3 | . 3 . Full Trace Events . | . . . Feedback Events . | . . . Feedback Blocked . | . . . Robot Schematics Acquired . | . . . Robots Built . | . . . Authchips . | . . . Time . | . . . Total Robot Build Rating . | . . . Part Schematics Acquired . | . . . Parts Built . | . . . Authchips . | . . . Time . | . . . Total Part Build Rating . | . . . Parts Repaired . | . . . Time . | . . . Parts Recycled . | . . . Recycled Matter . | . . . Retrieved Matter . | . . . Retrieved Components . | . . . Parts Scanalyzed . | . . . Part Schematics Acquired . | . . . Parts Damaged . | . . . Bothacking | -11 -10 -10 ------------ Run | Yrd Mat Min Used RIF Installer . | . . . Robots Hacked . | . . . Non-combat . | . . . Combat . | . . . Robot Hacks Applied . | . . . Relay Couplers Released . | . . . Fabnet Peak Effective % . | . . . Robots Rewired . | . . . Allies Hacked . | . . . Hacks Repelled . | . . . Allies | -11 -10 -10 -------- Run | Yrd Mat Min Total Allies . | . . . Largest Group . | . . . Highest-Rated Group . | . . . Highest-Rated Ally . | . . . Total Orders . | . . . Ally Attacks . | . . . Total Damage . | . . . Kills . | . . . Allies Corrupted . | . . . Allies Melted . | . . . Intel | -11 -10 -10 ------- Run | Yrd Mat Min Robot Analysis Total . | . . . Derelict Logs Recovered . | . . . Drone Launches . | . . . Drone Recoveries . | . . . Exploration | -11 -10 -10 ------------- Run | Yrd Mat Min Turns Passed 1989 | 35 1430 524 Spaces Moved 1228 | 36 862 330 Core 27 | 17 10 . Treads . | . . . Legs . | . . . Wheels 1201 | 19 852 330 Hover . | . . . Flight . | . . . Fastest Speed 50 | 50 90 110 Average Speed 131 | 73 136 123 Slowest Speed 900 | 150 900 140 Overloaded Moves . | . . . Propulsion Burnouts . | . . . Robots Hopped . | . . . Cave-ins Triggered . | . . . Exploration Rate (%) 53 | 4 98 59 Regions Visited 2 Branch Regions 1 Pre-discovered Areas . | . . . Known Exits Taken . | . . . Unknown Exits Taken 2 | 1 1 . Scrap Searched 1 | . . 1 Spaces Dug . | . . . Terrain Destroyed . | . . . Melee . | . . . Projectile . | . . . AOE . | . . . Terrain Rammed . | . . . Walls Destroyed . | . . . Machines Disabled . | . . . Actions | -11 -10 -10 --------- Run | Yrd Mat Min Total 1431 | 41 995 395 Wait 29 | . 24 5 Move 1226 | 35 861 330 Hop . | . . . Pick Up 33 | . 23 10 Fast Attach 10 | 6 3 1 Attach 7 | . 3 4 Detach . | . . . Swap 10 | . 5 5 Drop 10 | . 5 5 Fire 102 | . 68 34 Melee . | . . . Ram 4 | . 3 1 Kick . | . . . Crush . | . . . Escape Stasis . | . . . Rewire . | . . . Trap . | . . . Miscellaneous . | . . . Route ------- -11/Scrapyard -10/Materials (discovered 5 exits: [*Mat x3] / [*Min] / [*Sub]) -10/Mines (discovered 3 exits: [*Mat x2] / [*Exi]) History --------- Turn | Location | Event 4 | -11/Scrapyard | Discovered new exit (range 15) 36 | -11/Scrapyard | Entered Materials 311 | -10/Materials | Build established: Mutant 316 | -10/Materials | Discovered new exit (range 3) 605 | -10/Materials | Discovered new exit (range 8) 851 | -10/Materials | Discovered new exit (range 11) 1048 | -10/Materials | Discovered new exit (range 10) 1125 | -10/Materials | Core integrity fell below 50% 1344 | -10/Materials | Discovered new exit (range 11) 1433 | -10/Materials | Build established: Scavenger-Mutant 1466 | -10/Materials | Entered Mines 1561 | -10/Mines | Assembled infested the area 1581 | -10/Mines | Core integrity fell below 20% 1607 | -10/Mines | Deemed a non-threat by the Exiles lab entrance 1607 | -10/Mines | Discovered new exit (range 5) 1675 | -10/Mines | Discovered new exit (range 4) 1751 | -10/Mines | Lost 3 parts (1p1n1w) 1753 | -10/Mines | Discovered new exit (range 14) 1764 | -10/Mines | Build established: Mutant 1841 | -10/Mines | Joined a pair of Derelicts in attacking an 0b10 outpost 1990 | -10/Mines | Destroyed by as-59726 with Assembled Rifle Last Messages --------------- 01841_ A derelict emerges from the shadows: "We've had our eye on this brand new outpost for a little while, just waiting for an opportunity to strike. Need some help?" 01841_ Y-45 Defender destroyed. 01848_ Acquired Lgt. Armor Plating. 01850_ Acquired Lgt. Assault Rifle. 01871_ System corrupted: Heat flow error (+175). 01886_ AQ:BN,SIKV80I&FVN8HCQ>W 01912_ K-01 Serf collects debris. 01915_ System corrupted: Matter fused (-6). 01915_ K-01 Serf collects debris. 01917_ Acquired 6 matter. 01919_ K-01 Serf collects debris. 01949_ System corrupted: Substantial component data lost. 01955_ R-06 Scavenger collects Lgt. Assault Rifle. 01959_ R-06 Scavenger collects Flight Unit. 01962_ R-06 Scavenger collects Lgt. Assault Rifle. 01966_ R-06 Scavenger collects Lgt. Ion Engine. 01967_ KDF WV|SMN&JVNA8UTUIQ 01983_ System corrupted: Matter fused (-5). Map ----- +----------------------------------------------------+ | ???????????????###]##########* ## #?? | | ?????????????????# #????????# ##? #?? | | ????????????????## #####???# ##???#?? | | ????????????????# % #??# ##??????? | | ??##########????#%""" #??# ##???????? | | ?## #????# """ #??#####????????? | | ?# #????# """ #???????????????? | | ?# #????#!! #???????????????? | | ?# #########%* #???????????????? | | ?## ##########!= #???????????????? | | ??# ##?# #???????????????? | | ?## ##?# % < #???????????????? | | ?# ### ###%#* #???????????????? | | ?# ## ### ########???????????????? | | ?# ## # ##???????????????###?? | | ?## % ## #?????????????? ??? | | ??# ######??????????? ???? | | ??## " ##?????????? ???? | | ???# % #????????? ????? | | ???# #????????? #????? | | ???## r%=### ##?????#### #????? | | ????# # %########??????# ?????? | | ???# ####=%####??????????# ??????? | | ???# ##??# ####??????????# #??????? | | ???## ##???# #??????????# #??????? | | ????###?????# @ #?????###### #??????? | | ????????????####a #?????#[ #####??? | | ???????????????# #?????# #### ##?? | | ???????????????# *#??#### #??# """ #?? | | ???????????????#=%##?# #??# """ ### | | ???????????????#!| ### ###??## """ ## | | ???????????????# #?????# | | ??????????????# ### #?????# #### | | ?????????????# #?# #?????# #??## | | ?????????????# ##?# #?????# #???## | | ?????????????# ! ###??# #?????# #????# | | ?????????????# *#?????# #?????# #????## | | ?????????????# %??????# ###??## #?????## | | ???????????? !??????# #### ##?????# | | ??????????? *??????### ## #?????? | | ?????????? ???????## ### #?????? | | ?????????### ???????# #?# [ #?????? | | ???????????## ????????# ##?#== *#?????? | | ????????????# ???????#< #?##=%=##?????? | | ??????????????????????###### =##??????? | | ????????????????????????## ######### | | ????????????????????????# | | ????????????????????????# ######### | | ????????????????????????## ##???????? | | ?????????????????????????######????????? | +----------------------------------------------------+ Best States ------------- Heat Dissipation 25 Energy Generation 10 Energy Capacity 250 Matter Stores 300 Matter Capacity 300 Sight Range 16 Terrain Scan Density 10 Core Shielding 20 Evasion (%) 50 Item Schematics ----------------- None Robot Schematics ------------------ None Fabricated ------------ Nothing Alien Tech Used ----------------- None Achievements -------------- None Challenges ------------ None Game ------ Seed FlyingAntigravNukerbomber Manual? 0 Play Time 00:17:45 Cumulative 134.0 hours Start 2024.03.01 @ 13:02:29 End 2024.03.02 @ 10:35:01 Sessions 2 Manual Loads 0 Difficulty Rogue Special Mode None Game No. 77 Rogue 65 Adventurer 12 Explorer 0 Win Type - Total 1 Types 1/0/0/0/0/0/0/0/0 Lore% 19 Gallery% 36 Achievement% 29 Wizard Run 0 Options --------- Layout 1 ASCII 0 Keyboard 0 Movement Mouse Keybinds 0 Fullscreen 1 Font 32/SmallcapsGlow Map View 77x35 Zoom Use 0% Tactical HUD 1 Map Filters NONE Filters NONE Steam 1 RUN: a8c2fbee-a302-4ce9-ac17-eb16e4b5113a